bitfinex/quotes_SOLUSD_20220130
["timestamp","ask_amount","ask_price","bid_price","bid_amount"]
[1643552701817,0.25,94.039,93.941,0.25]
[1643552702019,0.25,94.039,93.941,107.7885748]
[1643552702217,0.25,94.039,93.941,105.55]
[1643552702421,0.25,94.039,93.942,2.2385748]
[1643552702618,27.21279142,94.039,93.942,2.2385748]
[1643552702818,27.21279142,94.039,93.943,0.25]
[1643552703019,24.2561,94.039,93.943,0.25]
[1643552703719,27.21279142,94.039,93.943,0.25]
[1643552703920,27.21279142,94.039,93.942,2.2385748]
[1643552704119,27.21279142,94.039,93.932,1.47085943]
[1643552704324,27.21279142,94.039,93.935,0.25]
[1643552704921,27.21279142,94.039,93.929,0.1]
[1643552705320,27.21279142,94.039,93.928,0.1]
[1643552705521,105.3,94.038,93.929,0.1]
[1643552705723,105.3,94.038,93.928,0.1]
[1643552706022,105.3,94.038,93.929,0.1]
[1643552706220,105.3,94.038,93.928,0.1]
[1643552706421,105.3,94.038,93.935,0.25]
[1643552707221,15.969,94.03,93.935,0.25]
[1643552708823,26.96279142,94.039,93.935,0.25]
[1643552709224,26.96279142,94.039,93.937,1.47085943]
[1643552709724,26.96279142,94.039,93.938,0.25]
[1643552709924,26.96279142,94.039,93.935,0.25]
[1643552710326,0.25,94.038,93.935,0.25]
[1643552711130,0.25,94.038,93.927,0.2308959]
[1643552711131,0.25,94.038,93.938,1.47085943]
[1643552711327,0.25,94.038,93.936,1.47085943]
[1643552711527,0.25,94.038,93.935,1.47085943]
[1643552711726,2.95669142,94.037,93.935,106.77085943]
[1643552712126,0.25,94.038,93.935,1.47085943]
[1643552712526,0.25,94.038,93.936,0.25]
[1643552712927,0.25,94.038,93.936,1.72085943]
[1643552713128,15.969,94.03,93.949,38.43821421]
[1643552713328,15.969,94.03,93.95,23.5218]
[1643552714030,24.0061,94.039,93.95,23.5218]
[1643552714229,1.44308586,94.047,93.951,107.5385748]
[1643552714430,1.44308586,94.047,93.96,6.0]
[1643552714628,1.44308586,94.053,93.961,6.0]
[1643552714829,1.44308586,94.058,93.962,0.25]
[1643552715028,22.6226,94.076,93.963,1.47085943]
[1643552715029,1.44308586,94.056,93.963,1.47085943]
[1643552715229,1.44308586,94.06,93.968,1.47085943]
[1643552715430,1.44308586,94.065,93.971,1.47085943]
[1643552715831,1.44308586,94.066,93.972,0.25]
[1643552716030,1.44308586,94.066,93.972,2.4885748]
[1643552716232,1.44308586,94.066,93.972,3.95943423]
[1643552716431,1.44308586,94.066,93.973,2.2385748]
[1643552716833,1.44308586,94.066,93.974,24.139]
[1643552717031,1.44308586,94.067,93.974,24.139]
[1643552717231,1.44308586,94.062,93.974,24.139]
[1643552717431,22.6226,94.076,93.974,24.139]
[1643552717432,1.44308586,94.06,93.974,24.139]
[1643552718032,17.40608586,94.06,93.974,24.139]
[1643552718633,24.8112,94.059,93.974,24.139]
[1643552719133,24.8112,94.059,93.974,23.889]
[1643552719335,15.965,94.05,93.974,23.889]
[1643552719634,1.44308586,94.049,93.974,23.889]
[1643552719836,2.95669142,94.049,93.974,23.889]
[1643552720234,1.44308586,94.047,93.974,23.889]
[1643552720436,1.44308586,94.046,93.974,23.889]
[1643552720634,1.44308586,94.045,93.974,23.889]
[1643552721038,15.967,94.04,93.974,23.889]
[1643552722642,15.967,94.04,93.963,23.9198]
[1643552724141,15.967,94.04,93.964,24.0511]
[1643552725242,0.25,94.039,93.964,24.0511]
[1643552726843,0.25,94.044,93.964,24.0511]
[1643552727243,1.44308586,94.046,93.964,24.0511]
[1643552727445,0.25,94.045,93.964,24.0511]
[1643552727645,15.966,94.04,93.964,24.0511]
[1643552728046,0.25,94.045,93.964,24.0511]
[1643552729848,1.44308586,94.047,93.964,24.0511]
[1643552731049,1.44308586,94.047,93.965,0.25]
[1643552731248,1.44308586,94.055,93.965,2.4885748]
[1643552731448,1.44308586,94.059,93.965,107.7885748]
[1643552731653,1.44308586,94.056,93.966,2.2385748]
[1643552731851,1.44308586,94.057,93.97,15.959]
[1643552732053,1.44308586,94.057,93.965,0.25]
[1643552732351,1.44308586,94.057,93.934,2.950024]
[1643552732352,2.95669142,94.056,93.934,2.950024]
[1643552732551,1.44308586,94.049,93.952,1.47085943]
[1643552732751,1.44308586,94.045,93.953,24.5106]
[1643552733051,24.1152,94.048,93.953,24.7606]
[1643552733349,24.1152,94.048,93.955,1.47085943]
[1643552733550,24.1152,94.048,93.954,105.3]
[1643552733551,1.69308586,94.047,93.954,105.3]
[1643552733749,1.44308586,94.047,93.955,0.25]
[1643552733950,15.07,94.05,93.96,1.47085943]
[1643552734153,1.44308586,94.059,93.962,1.47085943]
[1643552734350,1.44308586,94.059,93.97,15.959]
[1643552734553,1.44308586,94.061,93.971,48.5753]
[1643552734751,1.44308586,94.06,93.971,48.5753]
[1643552734952,1.44308586,94.058,93.972,105.3]
[1643552735152,1.44308586,94.062,93.972,105.3]
[1643552735352,1.44308586,94.061,93.972,105.3]
[1643552735551,1.44308586,94.061,93.971,48.5753]
[1643552735751,1.44308586,94.063,93.971,48.5753]
[1643552735953,1.44308586,94.06,93.972,105.3]
[1643552736153,1.44308586,94.066,93.972,105.55]
[1643552736355,1.44308586,94.062,93.972,105.55]
[1643552736553,1.44308586,94.064,93.972,0.25]
[1643552736856,1.44308586,94.061,93.972,0.25]
[1643552737052,1.44308586,94.062,93.972,0.25]
[1643552737253,1.44308586,94.063,93.972,0.25]
[1643552737453,1.44308586,94.063,93.972,105.55]
[1643552737855,1.44308586,94.065,93.972,105.55]
[1643552738053,15.963,94.06,93.972,0.25]
[1643552738254,1.44308586,94.062,93.971,48.5753]
[1643552738455,1.44308586,94.066,93.971,48.5753]
[1643552738655,1.44308586,94.066,93.982,42.26699618]
[1643552738954,1.44308586,94.067,93.983,23.733]
[1643552739155,1.44308586,94.068,93.983,23.733]
[1643552739356,26.30168586,94.069,93.983,23.733]
[1643552739783,1.44308586,94.067,93.983,23.733]
[1643552739984,1.44308586,94.065,93.983,23.733]
[1643552740185,24.8586,94.069,93.983,23.733]
[1643552740186,1.44308586,94.06,93.983,23.733]
[1643552740484,1.44308586,94.062,93.983,23.733]
[1643552740883,1.44308586,94.058,93.983,23.733]
[1643552741086,1.44308586,94.067,93.984,38.019236]
[1643552741284,1.44308586,94.073,93.984,38.269236]
[1643552741485,1.44308586,94.074,93.984,38.269236]
[1643552741888,1.44308586,94.074,93.985,105.3]
[1643552742086,0.25,94.073,93.984,38.269236]
[1643552742486,0.25,94.073,93.985,105.3]
[1643552742689,1.44308586,94.076,93.985,107.52604434]
[1643552742888,1.44308586,94.091,93.995,6.0]
[1643552743089,1.44308586,94.091,93.999,6.0]
[1643552743289,1.44308586,94.105,94.0,120.62]
[1643552743489,1.44308586,94.108,94.006,6.0]
[1643552743690,1.44308586,94.11,94.01,21.07]
[1643552743888,1.44308586,94.11,94.011,0.25]
[1643552744095,1.44308586,94.11,94.019,105.3]
[1643552744291,1.44308586,94.11,94.02,6.25]
[1643552744493,1.44308586,94.11,94.029,6.0]
[1643552744790,1.44308586,94.115,94.031,105.3]
[1643552744989,1.44308586,94.116,94.04,15.947]
[1643552745190,1.44308586,94.116,94.04,31.017]
[1643552745390,1.44308586,94.116,94.05,6.0]
[1643552745590,9.3,94.12,94.051,33.48694134]
[1643552745790,9.3,94.12,94.052,105.3]
[1643552746090,9.3,94.12,94.051,33.73694134]
[1643552746291,9.3,94.12,94.053,105.3]
[1643552746691,9.3,94.12,94.054,0.25]
[1643552748292,9.3,94.12,94.064,105.3]
[1643552748691,9.3,94.12,94.065,0.25]
[1643552749592,9.3,94.12,94.064,105.3]
[1643552749794,9.3,94.12,94.065,0.25]
[1643552749992,9.3,94.12,94.074,6.0]
[1643552750192,9.3,94.12,94.075,105.3]
[1643552750391,9.3,94.12,94.075,105.55]
[1643552750792,9.3,94.12,94.081,39.25496997]
[1643552750993,9.3,94.12,94.08,15.94]
[1643552751198,9.3,94.12,94.061,105.3]
[1643552751993,9.3,94.12,94.062,39.57563066]
[1643552752194,9.3,94.12,94.062,41.8015338]
[1643552752396,9.3,94.12,94.063,2.22590314]
[1643552752795,1.44308586,94.166,94.064,0.25]
[1643552752995,15.944,94.17,94.064,0.25]
[1643552752996,1.44308586,94.164,94.071,105.3]
[1643552753196,25.63358586,94.165,94.071,105.3]
[1643552753397,15.944,94.17,94.072,0.25]
[1643552753596,24.41768586,94.179,94.072,2.48409198]
[1643552753796,25.63358586,94.178,94.072,2.48409198]
[1643552753996,25.63358586,94.178,94.082,6.0]
[1643552754196,24.1905,94.178,94.083,47.1595]
[1643552754396,1.44308586,94.177,94.083,47.4095]
[1643552754796,0.25,94.176,94.084,105.3]
[1643552755000,1.44308586,94.173,94.062,39.57563066]
[1643552755197,12.69669142,94.176,94.058,107.53409198]
[1643552755198,1.44308586,94.166,94.058,107.53409198]
[1643552755497,1.44308586,94.166,94.058,105.3]
[1643552755697,1.44308586,94.166,94.042,22.9004]
[1643552755898,15.946,94.15,94.042,22.9004]
[1643552756097,47.9695,94.149,94.04,15.07]
[1643552756297,15.07,94.14,94.028,18.16179176]
[1643552756500,1.44308586,94.132,93.99,15.07]
[1643552756797,15.07,94.14,93.991,48.2623]
[1643552756798,15.07,94.12,93.991,48.2623]
[1643552757196,2.95669142,94.119,93.993,105.3]
[1643552757398,15.956,94.1,94.0,15.954]
[1643552757600,15.956,94.1,93.992,44.57518265]
[1643552757797,2.95669142,94.099,93.992,44.57518265]
[1643552758397,15.958,94.09,93.991,48.2623]
[1643552758596,15.958,94.09,93.97,15.07]
[1643552758799,15.07,94.08,93.956,17.35460088]
[1643552759097,15.07,94.08,93.952,24.2748]
[1643552759098,24.4278,94.079,93.952,24.2748]
[1643552759296,27.38449142,94.079,93.953,36.55716717]
[1643552759497,2.95669142,94.078,93.954,105.3]
[1643552759898,24.4278,94.079,93.954,105.3]
[1643552760101,15.961,94.07,93.964,6.0]
[1643552760499,2.95669142,94.069,93.965,24.5785]
[1643552760698,23.882,94.077,93.965,30.5785]
[1643552760900,15.07,94.07,93.943,1.47085943]
[1643552761098,2.95669142,94.069,93.943,1.47085943]
[1643552761399,2.95669142,94.069,93.93,15.07]
[1643552761601,108.25669142,94.069,93.95,15.962]
[1643552761999,108.25669142,94.069,93.951,35.56895283]
[1643552762401,108.25669142,94.069,93.952,0.25]
[1643552762603,108.25669142,94.069,93.952,46.393]
[1643552762798,15.962,94.06,93.952,46.393]
[1643552762998,15.962,94.06,93.953,2.24046257]
[1643552763198,22.9499,94.059,93.952,46.393]
[1643552763599,22.9499,94.059,93.953,2.24046257]
[1643552763798,22.9499,94.059,93.954,0.25]
[1643552763999,22.9499,94.059,93.952,46.393]
[1643552764199,22.9499,94.059,93.953,2.24046257]
[1643552764400,22.9499,94.059,93.955,2.24046257]
[1643552764601,24.4278,94.079,93.965,6.0]
[1643552764801,40.119,94.08,93.967,105.3]
[1643552765003,40.119,94.08,93.977,6.0]
[1643552765206,40.119,94.08,93.98,38.84825104]
[1643552765403,2.95669142,94.079,93.981,0.25]
[1643552765804,2.95669142,94.079,93.935,1.47085943]
[1643552765805,105.3,94.069,93.935,1.47085943]
[1643552766032,15.07,94.06,93.945,6.0]
[1643552766233,154.5411,94.059,93.94,6.0]
[1643552766434,157.74779142,94.059,93.935,2.24046257]
[1643552766637,157.74779142,94.059,93.945,6.0]
[1643552766834,2.95669142,94.058,93.945,6.0]
[1643552767035,15.967,94.03,93.945,6.0]
[1643552767236,15.967,94.03,93.946,0.25]
[1643552767434,15.967,94.03,93.945,6.0]
[1643552767637,18.92369142,94.03,93.945,6.0]
[1643552767839,18.92369142,94.03,93.947,6.0]
[1643552768035,15.967,94.03,93.947,6.0]
[1643552769036,15.967,94.03,93.948,0.25]
[1643552769536,15.967,94.03,93.949,2.24354942]
[1643552769736,53.224,94.05,93.949,2.24354942]
[1643552769937,49.2411,94.059,93.95,24.8496]
[1643552770137,49.2411,94.059,93.951,105.3]
[1643552770340,49.2411,94.059,93.952,0.25]
[1643552770739,15.07,94.06,93.953,105.3]
[1643552770940,9.09,94.08,93.961,105.3]
[1643552771339,9.09,94.08,93.962,0.25]
[1643552771340,15.07,94.07,93.962,0.25]
[1643552771741,2.95669142,94.069,93.962,0.25]
[1643552771941,2.95669142,94.069,93.961,105.3]
[1643552772142,24.8297,94.068,93.961,105.3]
[1643552772543,15.964,94.05,93.961,105.3]
[1643552773345,15.964,94.05,93.962,0.25]
[1643552773945,15.964,94.05,93.963,105.3]
[1643552774445,0.25,94.049,93.963,105.3]
[1643552775449,15.964,94.05,93.963,105.3]
[1643552775646,24.5797,94.068,93.963,105.3]
[1643552776348,24.5797,94.068,93.964,0.25]
[1643552776749,2.95669142,94.067,93.964,0.25]
[1643552777149,15.962,94.06,93.963,105.3]
[1643552777649,2.95669142,94.059,93.963,105.3]
[1643552778251,2.95669142,94.059,93.962,24.0526]
[1643552778252,15.964,94.05,93.962,24.0526]
[1643552779850,15.964,94.05,93.963,105.3]
[1643552780051,15.964,94.05,93.962,24.0526]
[1643552781254,0.25,94.049,93.962,24.0526]
[1643552781853,0.25,94.049,93.963,0.25]
[1643552782354,0.25,94.049,93.962,24.0526]
[1643552782554,15.965,94.04,93.962,24.0526]
[1643552782755,29.805,94.04,93.962,24.0526]
[1643552784556,13.84,94.04,93.962,24.0526]
[1643552786256,1.44308586,94.047,93.962,24.0526]
[1643552786559,0.25,94.039,93.962,24.0526]
[1643552786755,1.44308586,94.046,93.962,24.0526]
[1643552786956,0.25,94.046,93.962,24.0526]
[1643552787157,15.965,94.04,93.962,24.0526]
[1643552787356,1.44308586,94.039,93.962,24.0526]
[1643552787758,1.44308586,94.036,93.962,24.0526]
[1643552787960,1.44308586,94.035,93.962,24.0526]
[1643552788563,15.967,94.03,93.939,1.47085943]
[1643552788760,105.3,94.029,93.939,1.47085943]
[1643552788959,1.44308586,94.024,93.929,0.1]
[1643552789162,1.44308586,94.024,93.928,0.1]
[1643552789362,1.44308586,94.024,93.929,0.1]
[1643552789561,1.44308586,94.023,93.928,0.1]
[1643552789761,1.44308586,94.023,93.929,0.1]
[1643552789960,1.44308586,94.023,93.928,0.1]
[1643552790162,15.971,94.01,93.929,0.1]
[1643552790363,15.971,94.01,93.928,0.1]
[1643552790664,15.971,94.01,93.929,0.1]
[1643552790863,15.971,94.01,93.928,0.1]
[1643552791062,15.971,94.01,93.929,0.1]
[1643552791262,15.971,94.01,93.928,0.1]
[1643552791563,15.971,94.01,93.929,0.1]
[1643552791760,15.971,94.01,93.928,0.1]
[1643552791967,15.971,94.01,93.929,0.1]
[1643552792161,15.971,94.01,93.928,0.1]
[1643552792386,15.971,94.01,93.929,0.1]
[1643552792586,15.971,94.01,93.927,0.2308959]
[1643552792587,15.971,94.01,93.928,0.1]
[1643552792786,15.971,94.01,93.927,0.2308959]
[1643552792787,15.971,94.01,93.929,0.1]
[1643552792989,15.971,94.01,93.928,0.1]
[1643552793189,15.971,94.01,93.929,0.1]
[1643552793394,15.971,94.01,93.937,0.25]
[1643552793592,15.971,94.01,93.929,0.1]
[1643552793790,15.971,94.01,93.937,23.7629]
[1643552794490,0.25,94.009,93.937,23.7629]
[1643552797194,15.971,94.01,93.938,0.25]
[1643552797396,15.971,94.01,93.937,23.7629]
[1643552798294,15.971,94.01,93.938,0.25]
[1643552798499,15.971,94.01,93.937,23.7629]
[1643552799298,15.971,94.01,93.938,0.25]
[1643552799698,0.25,94.009,93.938,0.25]
[1643552800398,24.5649,94.027,93.938,0.25]
[1643552800601,24.5649,94.027,93.937,23.7629]
[1643552801003,24.5649,94.027,93.938,105.3]
[1643552801200,24.5649,94.027,93.938,105.55]
[1643552802199,24.5649,94.027,93.938,105.3]
[1643552802799,0.25,94.026,93.938,105.3]
[1643552803400,15.968,94.02,93.937,23.7629]
[1643552804201,25.298,94.02,93.937,23.7629]
[1643552805306,15.97,94.01,93.937,23.7629]
[1643552805504,0.25,94.019,93.937,129.0629]
[1643552805805,0.25,94.019,93.938,0.25]
[1643552806404,0.25,94.026,93.938,0.25]
[1643552807406,0.25,94.026,93.937,23.7629]
[1643552808407,0.25,94.026,93.937,129.0629]
[1643552809208,15.97,94.01,93.937,129.0629]
[1643552809810,15.97,94.01,93.937,23.7629]
[1643552812739,1.44308586,94.011,93.937,23.7629]
[1643552812940,0.25,94.009,93.938,0.25]
[1643552813138,1.44308586,94.019,93.938,0.25]
[1643552813538,1.44308586,94.022,93.938,0.25]
[1643552813738,1.44308586,94.023,93.938,0.25]
[1643552813941,15.968,94.02,93.938,0.25]
[1643552814338,1.44308586,94.026,93.938,0.25]
[1643552814739,24.5649,94.027,93.938,0.25]
[1643552814938,1.44308586,94.033,93.938,0.25]
[1643552815339,0.25,94.032,93.938,0.25]
[1643552815640,1.44308586,94.033,93.94,17.43485943]
[1643552815842,1.44308586,94.033,93.948,1.47085943]
[1643552816040,1.44308586,94.041,93.95,15.07]
[1643552816240,1.44308586,94.041,93.951,23.2693]
[1643552816443,1.44308586,94.047,93.952,105.3]
[1643552816841,1.44308586,94.049,93.953,1.72085943]
[1643552817041,1.44308586,94.049,93.953,3.97597593]
[1643552817241,1.44308586,94.051,93.955,1.47085943]
[1643552817643,1.44308586,94.049,93.96,15.959]
[1643552817841,1.44308586,94.04,93.955,1.47085943]
[1643552818041,1.44308586,94.04,93.951,23.2693]
[1643552818243,1.44308586,94.036,93.951,23.2693]
[1643552818444,1.44308586,94.027,93.951,23.2693]
[1643552818743,18.72336827,94.04,93.951,23.2693]
[1643552818744,1.44308586,94.021,93.951,23.2693]
[1643552818946,1.44308586,94.028,93.951,23.2693]
[1643552819445,1.44308586,94.029,93.951,23.2693]
[1643552819644,1.44308586,94.03,93.951,23.2693]
[1643552819845,1.44308586,94.03,93.952,0.25]
[1643552820145,1.44308586,94.031,93.952,0.25]
[1643552820947,1.44308586,94.031,93.951,23.2693]
[1643552821145,15.967,94.03,93.951,23.2693]
[1643552821350,1.44308586,94.028,93.951,23.2693]
[1643552821549,0.25,94.029,93.951,23.2693]
[1643552822148,1.44308586,94.026,93.951,23.2693]
[1643552822349,1.44308586,94.024,93.951,23.2693]
[1643552822548,15.969,94.02,93.951,23.2693]
[1643552823349,26.869,94.02,93.951,23.2693]
[1643552824250,10.93,94.02,93.951,23.2693]
[1643552825149,1.44308586,94.022,93.951,23.2693]
[1643552825350,1.44308586,94.023,93.951,23.2693]
[1643552825951,15.969,94.02,93.941,24.6715]
[1643552826254,24.6144,94.019,93.941,24.6715]
[1643552826655,24.6144,94.019,93.942,23.7214]
[1643552826852,24.6144,94.019,93.943,0.25]
[1643552827051,24.6144,94.019,93.942,23.7214]
[1643552828855,0.25,94.018,93.942,23.7214]
[1643552831956,0.25,94.018,93.943,0.25]
[1643552832456,0.25,94.018,93.943,105.55]
[1643552832857,1.44308586,94.026,93.943,105.55]
[1643552833358,1.44308586,94.032,93.943,107.79988938]
[1643552833657,1.44308586,94.034,93.943,107.79988938]
[1643552834057,1.44308586,94.034,93.95,15.963]
[1643552834260,1.44308586,94.035,93.951,105.55]
[1643552834458,1.44308586,94.036,93.951,105.55]
[1643552835060,1.44308586,94.034,93.951,105.3]
[1643552835459,1.44308586,94.038,93.952,0.25]
[1643552835660,1.44308586,94.041,93.952,0.25]
[1643552836059,1.44308586,94.04,93.952,0.25]
[1643552836260,1.44308586,94.042,93.952,0.25]
[1643552836461,1.44308586,94.047,93.953,2.24993356]
[1643552836661,1.44308586,94.046,93.96,15.961]
[1643552836864,1.44308586,94.047,93.961,0.25]
[1643552837062,1.44308586,94.049,93.961,2.49993356]
[1643552837285,1.44308586,94.056,93.961,2.49993356]
[1643552837462,1.44308586,94.053,93.961,2.49993356]
[1643552837762,1.44308586,94.057,93.961,2.49993356]
[1643552837962,0.25,94.052,93.98,15.958]
[1643552838163,1.44308586,94.058,93.982,32.84035094]
[1643552839263,1.44308586,94.062,93.983,105.3]
[1643552839465,1.44308586,94.062,93.983,128.8655]
[1643552839662,1.44308586,94.062,93.984,0.25]
[1643552839663,0.25,94.061,93.984,0.25]
[1643552839961,1.44308586,94.063,93.99,15.956]
[1643552840168,1.44308586,94.071,93.99,15.956]
[1643552840363,1.44308586,94.073,93.991,0.25]
[1643552840562,1.44308586,94.072,93.99,15.956]
[1643552840962,1.44308586,94.068,93.99,15.956]
[1643552841365,1.44308586,94.071,93.99,15.956]
[1643552841563,1.44308586,94.068,93.991,105.3]
[1643552841764,1.44308586,94.069,93.991,105.3]
[1643552841966,1.44308586,94.068,93.991,105.3]
[1643552842563,1.44308586,94.068,93.984,23.5258]
[1643552842963,1.44308586,94.066,93.984,23.5258]
[1643552843166,1.44308586,94.063,93.985,105.3]
[1643552843464,1.44308586,94.066,93.984,23.5258]
[1643552843865,1.44308586,94.064,93.984,23.5258]
[1643552845067,1.44308586,94.065,93.984,23.5258]
[1643552845270,23.3084,94.069,93.985,0.25]
[1643552845472,0.25,94.064,93.985,0.25]
[1643552845669,23.3084,94.069,93.985,0.25]
[1643552845872,0.25,94.068,93.985,0.25]
[1643552846770,0.25,94.068,93.985,105.55]
[1643552851173,0.25,94.068,93.984,23.5258]
[1643552851374,1.44308586,94.064,93.944,1.47085943]
[1643552851675,2.95669142,94.067,93.94,1.47085943]
[1643552851676,1.44308586,94.06,93.94,1.47085943]
[1643552851984,1.44308586,94.058,93.951,23.1963]
[1643552852177,4.39977728,94.059,93.951,23.1963]
[1643552852375,15.963,94.05,93.967,105.3]
[1643552853178,0.25,94.049,93.968,24.1513]
[1643552853375,15.965,94.04,93.95,15.07]
[1643552853575,23.0029,94.039,93.928,0.1]
[1643552853775,23.0029,94.039,93.929,0.1]
[1643552853974,1.44308586,94.035,93.928,0.1]
[1643552854174,1.44308586,94.034,93.936,24.991]
[1643552854379,1.44308586,94.034,93.944,41.07393438]
[1643552854575,1.44308586,94.032,93.944,41.07393438]
[1643552855177,2.95669142,94.031,93.944,41.07393438]
[1643552855777,23.0029,94.039,93.945,0.25]
[1643552855975,23.0029,94.039,93.945,105.55]
[1643552858475,2.95669142,94.058,93.951,105.3]
[1643552858476,1.44308586,94.047,93.951,105.3]
[1643552858676,1.44308586,94.057,93.955,6.0]
[1643552858878,1.44308586,94.06,93.962,105.3]
[1643552859076,1.44308586,94.06,93.963,23.1387]
[1643552859277,1.44308586,94.062,93.964,105.3]
[1643552859476,23.7196,94.085,93.974,42.217065]
[1643552859477,1.44308586,94.065,93.974,42.217065]
[1643552859677,1.44308586,94.066,93.981,105.3]
[1643552859879,1.44308586,94.066,93.982,0.25]
[1643552860078,1.44308586,94.07,93.982,0.25]
[1643552860279,1.44308586,94.07,93.992,105.3]
[1643552860477,1.44308586,94.073,93.993,23.3478]
[1643552860677,23.7196,94.085,94.0,15.954]
[1643552860678,1.44308586,94.076,94.0,15.954]
[1643552860876,24.2897,94.091,94.001,0.25]
[1643552861077,20.30723818,94.111,94.012,36.0052955]
[1643552861278,24.7701,94.119,94.013,152.656]
[1643552862381,24.7701,94.119,94.02,15.95]
[1643552862779,24.7701,94.119,94.021,0.25]
[1643552863182,24.7701,94.119,94.021,105.55]
[1643552863384,15.952,94.12,94.021,105.55]
[1643552864586,0.25,94.119,94.021,105.55]
[1643552865089,23.1797,94.119,94.021,105.55]
[1643552865287,23.1797,94.119,94.022,2.23810777]
[1643552865687,23.1797,94.119,94.021,105.3]
[1643552866888,22.9297,94.119,94.021,105.3]
[1643552867309,15.954,94.11,94.013,47.106]
[1643552867713,15.954,94.11,94.014,105.55]
[1643552869112,0.25,94.109,94.014,105.55]
[1643552869511,15.704,94.11,94.015,44.0]
[1643552869911,15.704,94.11,94.016,0.25]
[1643552870315,15.704,94.11,94.016,105.55]
[1643552871715,15.704,94.11,94.016,0.25]
[1643552871916,15.704,94.11,94.012,36.0052955]
[1643552872116,15.959,94.08,94.012,36.0052955]
[1643552872316,26.149,94.08,94.012,36.0052955]
[1643552872717,15.07,94.09,94.013,105.3]
[1643552872918,22.7394,94.089,94.014,24.362]
[1643552873119,22.7394,94.089,94.015,105.3]
[1643552873917,22.7394,94.089,94.014,24.362]
[1643552874816,22.7394,94.089,94.015,0.25]
[1643552875016,22.7394,94.089,94.015,105.55]
[1643552875420,24.3473,94.108,94.015,105.55]
[1643552876818,22.8905,94.107,94.015,105.55]
[1643552877018,22.8905,94.107,94.021,105.3]
[1643552877419,22.8905,94.107,94.033,36.19810354]
[1643552877720,22.8905,94.107,94.034,128.4648]
[1643552877921,22.8905,94.107,94.034,128.7148]
[1643552878920,2.88386991,94.154,94.035,2.23810777]
[1643552879122,2.88386991,94.154,94.045,6.0]
[1643552879322,49.41436447,94.169,94.061,105.3]
[1643552879521,46.5235,94.169,94.062,64.2467528]
[1643552879722,46.5235,94.169,94.07,15.943]
[1643552879922,46.5235,94.169,94.071,105.55]
[1643552880124,46.5235,94.169,94.071,129.7535]
[1643552880529,46.5235,94.169,94.072,2.23810777]
[1643552880924,46.5235,94.169,94.08,15.941]
[1643552881125,2.88386991,94.184,94.081,39.94369627]
[1643552881327,2.88386991,94.188,94.081,67.29400404]
[1643552881527,2.88386991,94.197,94.081,67.29400404]
[1643552881725,5.77433124,94.198,94.082,2.23810777]
[1643552881924,2.89046133,94.198,94.09,15.939]
[1643552882125,15.94,94.19,94.09,15.939]
[1643552882324,15.94,94.19,94.091,0.25]
[1643552882526,31.01,94.19,94.091,0.25]
[1643552883327,30.01,94.19,94.091,0.25]
[1643552883730,30.01,94.19,94.091,105.55]
[1643552884227,15.946,94.16,94.081,39.94369627]
[1643552884427,105.3,94.159,94.081,39.94369627]
[1643552884627,124.94037421,94.159,94.081,39.94369627]